Cogmind - Beta 13 @@@ ROGUE MODE // 2024.05.18 @ 16:45:33 Player: Crackrock_Steady Result: Destroyed by G-47 Trooper with Particle Gun Performance ------------- Evolutions (2) 1000 Regions Visited (4) 800 Robots Destroyed (28) 140 Value Destroyed (602) 602 Prototype IDs (2) 40 Alien Tech Used (0) 0 Bonus (0) 0 TOTAL SCORE: 2582 Bonus ------- None Cogmind --------- Core Integrity 0/550 Matter 195/300 Energy 64/100 System Corruption 0% Temperature Warm (103) Movement Core (100) Ox1 Location -8/Materials Parts ------- > --- POWER (1) -------- (None) > --- PROPULSION (3) --- (None) > --- UTILITY (5) ------ Small Storage Unit Signal Interpreter > --- WEAPON (2) ------- (None) > --- INVENTORY (8) ---- Small Laser Datajack Peak State ------------ > --- POWER ------------ Improved Ion Engine > --- PROPULSION ------- Aluminum Leg Aluminum Leg Improved Aluminum Leg > --- UTILITY ---------- Small Storage Unit Signal Interpreter ECM Suite Light Armor Plating Medium Armor Plating > --- WEAPON ----------- Medium Laser Small Laser > --- INVENTORY -------- Flight Unit Heavy Assault Rifle Light Cannon Grenade Launcher Datajack [Rating: 14] Favorites ----------- Power Light Ion Engine Engine Light Ion Engine Propulsion Aluminum Leg Leg Aluminum Leg Wheel Compact Wheel Flight Unit Flight Unit Utility Small Storage Unit Device Structural Scanner Storage Small Storage Unit Processor Signal Interpreter Protection Medium Armor Plating Weapon Medium Laser Energy Gun Medium Laser Ballistic Gun Light Assault Rifle Ballistic Cannon Light Cannon Launcher Grenade Launcher Build | -11 -10 -9 -9 -8 ------- Run | Yrd Mat Mat Min Mat Slots Evolved 4 | . . 2 . 2 Power . | . . . . . Propulsion 1 | . . 1 . . Utility 3 | . . 1 . 2 Weapon . | . . . . . Parts Attached 42 | 7 7 14 6 8 Power 5 | 1 1 1 2 . Engine 5 | 1 1 1 2 . Core . | . . . . . Reactor . | . . . . . Propulsion 11 | 2 . 5 3 1 Treads . | . . . . . Leg 8 | . . 5 3 . Wheel 2 | 2 . . . . Hover . | . . . . . Flight 1 | . . . . 1 Utility 7 | 2 1 1 1 2 Device 3 | 1 1 1 . . Storage 1 | 1 . . . . Processor 1 | . . . . 1 Hackware . | . . . . . Protection 2 | . . . 1 1 Artifact . | . . . . . Weapon 19 | 2 5 7 . 5 Energy Gun 10 | 2 2 4 . 2 Energy Cannon . | . . . . . Ballistic Gun 5 | . 1 3 . 1 Ballistic Cannon 1 | . . . . 1 Launcher 3 | . 2 . . 1 Special Weapon . | . . . . . Impact Weapon . | . . . . . Slashing Weapon . | . . . . . Piercing Weapon . | . . . . . Special Melee Weapon . | . . . . . Unidentified Prototypes . | . . . . . Parts Lost 26 | . 4 9 . 13 Power 3 | . 1 1 . 1 Propulsion 8 | . 1 3 . 4 Utility 4 | . 1 . . 3 Weapon 11 | . 1 5 . 5 Highest Loss Streak 9 | . 2 5 . 9 To Critical Strikes . | . . . . . Average Slot Usage (%) 85 | . 89 85 100 49 Engine 9 | . 13 8 11 4 Leg 17 | . . 24 33 10 Wheel 5 | . 19 . . . Device 14 | . 13 19 14 . Storage 11 | . 14 11 11 9 Protection 1 | . . . 7 5 Energy Gun 14 | . 14 13 22 4 Ballistic Gun 6 | . 9 7 . . Launcher 1 | . 4 . . 1 Naked Turns . | . . . . . Heaviest Build 27 | 13 14 16 24 27 Greatest Support 36 | 26 26 36 33 33 Greatest Overweight (x) 3 | . . 3 . 2 Average Overweight (x) . | . . . . . Largest Inventory Capacity 8 | 8 8 8 8 8 Average Capacity 7 | 7 8 8 8 8 Most Carried 8 | 3 4 8 8 6 Average Carried 4 | 1 2 5 6 4 Final Capacity 8 | 8 8 8 8 8 Final Carried 7 | 2 4 6 7 2 Class Distribution -------------------- 40% | Mutant 38% | Scavenger-Mutant 20% | Infiltrator-Mutant Dominant Class ---------------- Mutant | -10/Materials Infiltrator-Mutant | -9/Materials Scavenger-Mutant | -9/Mines Mutant | -8/Materials Resources | -11 -10 -9 -9 -8 ----------- Run | Yrd Mat Mat Min Mat Matter Collected 622 | 192 170 206 48 6 Remotely . | . . . . . Salvage Created 561 | 24 253 202 . 82 Parts 54 | 3 18 19 . 14 Haulers Intercepted . | . . . . . Recyclers Shooed . | . . . . . Parts Field Recycled . | . . . . . Retrieved Matter . | . . . . . Parts Self-Destructed . | . . . . . Prevented . | . . . . . Kills | -11 -10 -9 -9 -8 ------- Run | Yrd Mat Mat Min Mat Combat Hostiles Destroyed 24 | . 11 6 . 7 Guns 10 | . 4 6 . . Cannons 1 | . . . . 1 AOE 13 | . 7 . . 6 Classes Destroyed 6 | 1 3 2 . . Builder 2 | . 1 . . 1 Tunneler 1 | 1 . . . . Watcher 1 | . . 1 . . Swarmer 13 | . 5 2 . 6 Grunt 9 | . 6 3 . . Sentry 2 | . . 1 . 1 Best Kill Streak 8 | 1 5 4 . 8 Combat Bots Only 7 | . 5 4 . 7 Max Kills in Single Turn 3 | 1 3 1 . 2 Gunslinging . | . . . . . Exploded 3 | . 3 . . 2 Melee . | . . . . . Uniques/NPCs Destroyed . | . . . . . Combat | -11 -10 -9 -9 -8 -------- Run | Yrd Mat Mat Min Mat Hostile Shots Fired 266 | . 35 109 . 122 Missed 81 | . 9 32 . 40 Damage Taken 2919 | . 324 991 . 1604 Core 799 | . 34 208 . 557 Absorbed by Shields . | . . . . . Core Remaining (%) 78 | 100 86 . 48 . Volleys Fired 89 | 1 28 44 . 16 Largest 2 | 2 2 2 . 2 Hottest 113 | 90 90 90 . 113 Shots Fired 141 | 2 53 66 . 20 Gun 125 | 2 45 66 . 12 Cannon 1 | . . . . 1 Launcher 15 | . 8 . . 7 Special . | . . . . . Kinetic 73 | . 22 46 . 5 Thermal 44 | 1 19 16 . 8 Explosive 15 | . 8 . . 7 Electromagnetic 9 | 1 4 4 . . Robot Hit Streak 13 | 1 6 13 . 4 Robot Miss Streak 4 | . 3 4 . 3 Penetration Max . | . . . . . Secondary Targets 1 | . . 1 . . Max Gunslinging Chain 1 | . . 1 . . Shots Hit Robots 88 | 1 30 45 . 12 Core Hits 45 | 1 20 13 . 11 Critical Kills 1 | . 1 . . . Critical Parts Destroyed . | . . . . . Critical Strikes 3 | . 2 1 . . Burn 2 | . 1 1 . . Destroy 1 | . 1 . . . Melee Attacks . | . . . . . Impact . | . . . . . Slashing . | . . . . . Piercing . | . . . . . Sneak Attacks . | . . . . . Combat Hostiles . | . . . . . Follow-up Attacks . | . . . . . Damage Inflicted 1985 | 12 923 502 2 546 Guns 799 | 12 223 409 . 155 Cannons 18 | . . . . 18 Explosions 1166 | . 700 93 . 373 Melee . | . . . . . Ramming 2 | . . . 2 . Kinetic 399 | . 95 232 . 72 Thermal 399 | . 112 129 . 158 Explosive 1109 | . 700 93 . 316 Electromagnetic 76 | 12 16 48 . . Impact . | . . . . . Slashing . | . . . . . Piercing . | . . . . . Highest Corruption . | . . . . . Average Corruption . | . . . . . Corruption Purged . | . . . . . Corruption Blocked . | . . . . . Overload Shots . | . . . . . Overflow Damage 69 | . 19 48 . 2 Projectiles . | . . . . . Explosions 69 | . 19 48 . 2 Melee . | . . . . . Knockbacks . | . . . . . Impact . | . . . . . Kinetic . | . . . . . Secondary . | . . . . . Self-Inflicted Damage 188 | . 67 64 . 57 Shots 6 | . 3 1 . 2 Rammed . | . . . . . Targets Rammed 1 | . . . 1 . Kicked 1 | . . . 1 . Crushed . | . . . . . Highest Temperature 171 | 30 90 104 . 171 Average Temperature 37 | 17 30 23 . 110 Received Heat Transfer 948 | . 84 333 . 531 Siege Activations . | . . . . . Robots Corrupted . | . . . . . Combat Hostiles . | . . . . . Parts Fried . | . . . . . Impact Corruptions . | . . . . . Robots Melted . | . . . . . Combat Hostiles . | . . . . . Parts Melted 1 | . . 1 . . Heat Transferred 1136 | . 407 420 . 309 Parts Sabotaged . | . . . . . Parts Stolen . | . . . . . Parts Stripped . | . . . . . Power Chain Reactions . | . . . . . Alert | -11 -10 -9 -9 -8 ------- Run | Yrd Mat Mat Min Mat Peak Influence 337 | 5 337 177 . 196 Initial 142 | . 3 142 . . Average 96 | . 159 103 . 118 Maximum Alert Level 1 | . 1 . . . Low Security (%) 87 | 100 52 100 100 100 Level 1 12 | . 47 . . . Level 2 . | . . . . . Level 3 . | . . . . . Level 4 . | . . . . . Level 5 . | . . . . . High Security . | . . . . . Max Security . | . . . . . Squads Dispatched 5 | . 2 1 . 2 Investigation 1 | . 1 . . . Extermination . | . . . . . Reinforcement 4 | . 1 1 . 2 Assault . | . . . . . Garrison . | . . . . . Intercept . | . . . . . Searches Triggered . | . . . . . Construction Impeded . | . . . . . Haulers Reinforced . | . . . . . Active Scanning Responses . | . . . . . Cargo Convoy Interrupts . | . . . . . Stealth | -11 -10 -9 -9 -8 --------- Run | Yrd Mat Mat Min Mat Distress Signals 2 | . . 2 . . Communications Jammed . | . . . . . Distress Signals . | . . . . . Times Spotted 49 | . 17 16 1 15 Peak Tracking Total 7 | . 7 6 2 7 Tactical Retreats 3 | . 1 1 . 1 Traps | -11 -10 -9 -9 -8 ------- Run | Yrd Mat Mat Min Mat Traps Triggered 2 | . . 2 . . Indirectly . | . . . . . Trap Hack Attempts . | . . . . . Triggered . | . . . . . Disarmed . | . . . . . Reprogrammed . | . . . . . Reused . | . . . . . Traps Extracted . | . . . . . Installed . | . . . . . Triggered . | . . . . . Machines | -11 -10 -9 -9 -8 ---------- Run | Yrd Mat Mat Min Mat Machines Disabled 3 | . 1 1 . 1 Max in Single Turn 1 | . 1 1 . 1 Machines Repaired . | . . . . . Machines Dismantled . | . . . . . Machines Sabotaged . | . . . . . Overloaded Fab Kills . | . . . . . Hacking | -11 -10 -9 -9 -8 --------- Run | Yrd Mat Mat Min Mat Machines Accessed 4 | . 2 2 . . Terminals 3 | . 1 2 . . Fabricators . | . . . . . Repair Stations . | . . . . . Recycling Units 1 | . 1 . . . Scanalyzers . | . . . . . Garrison Access . | . . . . . Total Hacks 12 | . 5 7 . . Successful 5 | . 1 4 . . Failed 7 | . 4 3 . . Catastrophic . | . . . . . Database Lockouts . | . . . . . Manual 5 | . 4 1 . . Terminals 9 | . 2 7 . . Fabricators . | . . . . . Repair Stations . | . . . . . Recycling Units 3 | . 3 . . . Scanalyzers . | . . . . . Garrison Access . | . . . . . Terminal Hacks 5 | . 1 4 . . Robot Analysis 1 | . 1 . . . Prototype ID Bank 1 | . . 1 . . Unreport Threat 1 | . . 1 . . Dispatch Records 1 | . . 1 . . Zone Layout 1 | . . 1 . . Fabricator Hacks . | . . . . . Repair Station Hacks . | . . . . . Recycling Unit Hacks . | . . . . . Scanalyzer . | . . . . . Garrison Access Hacks . | . . . . . Unauthorized Hacks . | . . . . . Terminals . | . . . . . Fabricators . | . . . . . Repair Stations . | . . . . . Recycling Units . | . . . . . Scanalyzers . | . . . . . Garrison Access . | . . . . . Data Cores Recovered . | . . . . . Used . | . . . . . Hacking Detections 2 | . 2 . . . Full Trace Events 2 | . 2 . . . Feedback Events . | . . . . . Feedback Blocked . | . . . . . Robot Schematics Acquired . | . . . . . Robots Built . | . . . . . Authchips . | . . . . . Time . | . . . . . Total Robot Build Rating . | . . . . . Part Schematics Acquired . | . . . . . Parts Built . | . . . . . Authchips . | . . . . . Time . | . . . . . Total Part Build Rating . | . . . . . Parts Repaired . | . . . . . Time . | . . . . . Parts Recycled . | . . . . . Recycled Matter . | . . . . . Retrieved Matter . | . . . . . Retrieved Components . | . . . . . Parts Scanalyzed . | . . . . . Part Schematics Acquired . | . . . . . Parts Damaged . | . . . . . Bothacking | -11 -10 -9 -9 -8 ------------ Run | Yrd Mat Mat Min Mat Used RIF Installer . | . . . . . Robots Hacked . | . . . . . Non-combat . | . . . . . Combat . | . . . . . Robot Hacks Applied . | . . . . . Relay Couplers Released . | . . . . . Fabnet Peak Effective % . | . . . . . Robots Rewired . | . . . . . Allies Hacked . | . . . . . Hacks Repelled . | . . . . . Allies | -11 -10 -9 -9 -8 -------- Run | Yrd Mat Mat Min Mat Total Allies . | . . . . . Largest Group . | . . . . . Highest-Rated Group . | . . . . . Highest-Rated Ally . | . . . . . Total Orders . | . . . . . Ally Attacks . | . . . . . Total Damage . | . . . . . Kills . | . . . . . Allies Corrupted . | . . . . . Allies Melted . | . . . . . Intel | -11 -10 -9 -9 -8 ------- Run | Yrd Mat Mat Min Mat Robot Analysis Total 1 | . 1 . . . Derelict Logs Recovered 2 | . . . 2 . Drone Launches . | . . . . . Drone Recoveries . | . . . . . Exploration | -11 -10 -9 -9 -8 ------------- Run | Yrd Mat Mat Min Mat Turns Passed 1086 | 62 278 451 178 117 Spaces Moved 674 | 52 196 229 136 61 Core 24 | 9 . 1 . 14 Treads . | . . . . . Legs 373 | . . 207 136 30 Wheels 260 | 43 196 21 . . Hover . | . . . . . Flight 17 | . . . . 17 Fastest Speed 50 | 50 90 100 120 100 Average Speed 112 | 83 95 128 120 117 Slowest Speed 200 | 90 100 200 120 150 Overloaded Moves . | . . . . . Propulsion Burnouts . | . . . . . Robots Hopped . | . . . . . Cave-ins Triggered . | . . . . . Exploration Rate (%) 19 | 4 46 17 23 9 Regions Visited 4 Branch Regions 1 Pre-discovered Areas . | . . . . . Known Exits Taken . | . . . . . Unknown Exits Taken 4 | 1 1 1 1 . Scrap Searched 1 | . . . 1 . Spaces Dug . | . . . . . Terrain Destroyed 117 | . 41 24 . 52 Melee . | . . . . . Projectile . | . . . . . AOE 117 | . 41 24 . 52 Terrain Rammed . | . . . . . Walls Destroyed . | . . . . . Machines Disabled . | . . . . . Actions | -11 -10 -9 -9 -8 --------- Run | Yrd Mat Mat Min Mat Total 868 | 68 236 327 151 86 Wait 30 | . 1 29 . . Move 670 | 51 195 228 135 61 Hop . | . . . . . Pick Up 32 | 9 5 11 6 1 Fast Attach 1 | . . 1 . . Attach 28 | 7 3 8 4 6 Detach . | . . . . . Swap 13 | . 4 5 2 2 Drop 4 | . . 1 3 . Fire 89 | 1 28 44 . 16 Melee . | . . . . . Ram . | . . . . . Kick 1 | . . . 1 . Crush . | . . . . . Escape Stasis . | . . . . . Rewire . | . . . . . Trap . | . . . . . Miscellaneous . | . . . . . Route ------- -11/Scrapyard -10/Materials -9/Materials -9/Mines -8/Materials (discovered 1 exit: Fac) History --------- Turn | Location | Event 27 | -11/Scrapyard | Discovered new exit (range 15) 63 | -11/Scrapyard | Entered Materials 307 | -10/Materials | Build established: Mutant 334 | -10/Materials | Discovered new exit (range 8) 341 | -10/Materials | Entered another Materials area 341 | -9/Materials | Evolved 2 slots: Propulsion x1, Utility x1 711 | -9/Materials | Lost 5 parts (1p1n3w) 736 | -9/Materials | Core integrity fell below 50% 736 | -9/Materials | Discovered new exit (range 13) 792 | -9/Materials | Entered Mines 833 | -9/Mines | Joined a pair of Derelicts in attacking an 0b10 outpost 954 | -9/Mines | Discovered new exit (range 7) 970 | -9/Mines | Entered Materials 970 | -8/Materials | Evolved 2 slots: Utility x2 971 | -8/Materials | Identified exit to Factory 1037 | -8/Materials | Destroyed 7 combat bots 1057 | -8/Materials | Lost 9 parts (1p3n3u2w) 1058 | -8/Materials | Core integrity fell below 50% 1082 | -8/Materials | Core integrity fell below 20% 1087 | -8/Materials | Destroyed by G-47 Trooper with Particle Gun Last Messages --------------- 01021_ Imp. Ion Engine destroyed. 01021_ Slug penetrates Earth. 01021_ Imp. Aluminum Leg destroyed. 01022_ The unstable cave ceiling collapses. 01026_ Aluminum Leg destroyed. 01032_ Critical hit (Burn: +37). 01038_ Acquired Field Laser. 01044_ Electrolysis Chamber disabled. 01060_ Flight Unit destroyed. 01065_ Critical hit (Burn: +37). 01068_ Y-45 Defender suffers critical hit (Burn). 01070_ Field Laser destroyed. 01071_ Penetrated by Slug. 01071_ Knocked back. 01077_ G-47 Trooper heat short circuits Aluminum Leg. 01079_ Med. Laser destroyed. 01081_ Critical hit (Burn: +37). 01087_ Hvy. Assault Rifle destroyed. Map ----- +----------------------------------------------------+ | ?????????????????????????????????????????????????? | | ?????????????????????????????????????????????????? | | ?????????????????????????????????????????????????? | | ????????????????????????? ??????????????????????? | | ????????????????????????? ??????????????????????? | | ????????????????????????? ?????????????????????? | | ????????????????????????? ???????????????????? | | ????????????????????????? ???????????????????? | | ????????????????????????? ????????????????????? | | ????????????????????????? ????????????????????? | | ????????????????????????# ????????????????????? | | ???????????????????????## ##???????????????????? | | ???????????????????????# ######??????????????? | | ???????????????????????# t ???????????????? | | ???????????????????????+ T ????????????????? | | ???????????????????????? ??????????????????? | | ???????????????????????? #???????????????????? | | ????????????????????????# #????????????????????? | | ????????????????????????# H #????????????????????? | | ?????????????????######## a #????????????????????? | | ????????########## + #????????????????????? | | ????????# """ #""" ;g g#????????????????????? | | ????????# "Y" #""" # g #????????????????????? | | ????????# #"" # #????????????????????? | | ????????# " # #????????????????????? | | ???????## " #@ #????????????????????? | | ???????#" ""###### #????????????????????? | | ???????#[ "##????# %#????????????????????? | | ???????#"!% " #?#??# #????????????????????? | | ???????#"!! # #### #????????????????????? | | ???????#" #%= [ # #????????????????????? | | +#####"## [ ????????????????????? | | ???????????????????? | | = r ??????????????????? | | % % ?????????????????? | | # ##### "! ####????????????????? | | # #???####"### ## # # # ##???????????????????? | | # #?????? !##?######## #????????????????????? | | # +??????""" #??????????+#????????????????????? | | # #????? """ #????????????????????????????????? | | # #????? """ #????????????????????????????????? | | # #???? #????????????????????????????????? | | # #???? #????????????????????????????????? | | # #??? ????? #????????????????????????????????? | | # #???#???????#????????????????????????????????? | | + #????????????????????????????????????????????? | | # ????????????????????????????????????????????? | | # ????????????????????????????????????????????? | | ? ?????????????????????????????????????????????? | | ?????????????????????????????????????????????????? | +----------------------------------------------------+ Best States ------------- Heat Dissipation 31 Energy Generation 12 Energy Capacity 265 Matter Stores 300 Matter Capacity 300 Sight Range 16 Terrain Scan Density 10 ECM Strength 1 Armor Coverage 375 Evasion (%) 55 Item Schematics ----------------- None Robot Schematics ------------------ None Fabricated ------------ Nothing Alien Tech Used ----------------- None Achievements -------------- None Challenges ------------ None Game ------ Seed InertialTachyonShockpuncher Manual? 0 Play Time 00:18:01 Cumulative 7.0 hours Start 2024.05.18 @ 16:28:38 End 2024.05.18 @ 16:45:33 Sessions 1 Manual Loads 0 Difficulty Rogue Special Mode None Game No. 18 Rogue 18 Adventurer 0 Explorer 0 Win Type - Total 0 Types 0/0/0/0/0/0/0/0/0 Lore% 9 Gallery% 13 Achievement% 14 Wizard Run 0 Options --------- Layout 1 ASCII 0 Keyboard 0 Movement Mouse Keybinds 0 Fullscreen 1 Font 24/Smallcaps Map View 50x35 Zoom Use 0% Tactical HUD 1 Map Filters NONE Filters NONE Steam 1 RUN: fd6234cd-c63b-4b20-9bac-3f67dd58cdeb